Workbook

Sheet Menu
A3: =language!A2 -> 界面语言 | B3: Chinese | D3: =language!A11 -> 图形类型 | E3: 2X4图形-三因素
A4: =language!A21 -> 调节变量类型 | B4: 2连续变量 | D4: =language!A5 -> 数据 | E4: 标准化数据

Sheet 22Figure
A1: =language!A101 -> 请只在有填充色的单元格中，输入必需的信息。如需帮助，请访问：www.obhrm.net/index.php/mod | D1: =language!A102 -> 返回菜单
A3: =language!A41 -> 图形标题 | B3: 图1 调节作用效果图
A4: =language!A42 -> 横轴标题 | B4: 自变量名称
A5: =language!A51 -> 纵轴标题 | B5: 因变量名称
A6: =language!A43 -> 自变量图例（低） | B6: 低
A7: =language!A45 -> 自变量图例（高） | B7: 高
A8: =language!A53 -> 调节变量图例（低） | B8: 权力距离低
A9: =language!A55 -> 调节变量图例（高） | B9: 权力距离高
B13: =language!A91 -> 非标准化回归系数（B） | C13: =language!A92 -> 平均值（M） | D13: =language!A93 -> 标准差（SD）
A14: =language!A71 -> 主效应 | B14: 0.6 | C14: 0 | D14: 1
A15: =language!A72 -> 调节变量效应 | B15: 0.4 | C15: 0 | D15: 1
A16: =language!A73 -> 调节效应 | B16: -1
A17: =language!A74 -> 常量 | B17: 3
B19: =B6 -> 低 | C19: =B7 -> 高
A20: =B8 -> 权力距离低 | B20: =((C14-D14)*B14)+((C15-D15)*B15)+((C14-D14)*(C15-D15))*B16+B17 -> 1 | C20: =(C14+D14)*B14+((C15-D15)*B15)+((C14+D14)*(C15-D15)*B16)+B17 -> 4.2
A21: =B9 -> 权力距离高 | B21: =((C14-D14)*B14)+(C15+D15)*B15+((C14-D14)*(C15+D15)*B16)+B17 -> 3.8 | C21: =(C14+D14)*B14+(C15+D15)*B15+((C14+D14)*(C15+D15))*B16+B17 -> 3

Sheet 32Figure
A1: =language!A101 -> 请只在有填充色的单元格中，输入必需的信息。如需帮助，请访问：www.obhrm.net/index.php/mod | D1: =language!A102 -> 返回菜单
A3: =language!A41 -> 图形标题 | B3: 图1 调节作用效果图
A4: =language!A42 -> 横轴标题 | B4: 自变量名称
A5: =language!A51 -> 纵轴标题 | B5: 因变量名称
A6: =language!A43 -> 自变量图例（低） | B6: 低
A7: =language!A44 -> 自变量图例（中） | B7: 中
A8: =language!A45 -> 自变量图例（高） | B8: 高
A9: =language!A53 -> 调节变量图例（低） | B9: 权力距离低
A10: =language!A55 -> 调节变量图例（高） | B10: 权力距离高
B13: =language!A91 -> 非标准化回归系数（B） | C13: =language!A92 -> 平均值（M） | D13: =language!A93 -> 标准差（SD）
A14: =language!A71 -> 主效应 | B14: 0.6 | C14: 0 | D14: 1
A15: =language!A72 -> 调节变量效应 | B15: 0.4 | C15: 0 | D15: 1
A16: =language!A73 -> 调节效应 | B16: 0.9
A17: =language!A74 -> 常量 | B17: 5
B19: =B6 -> 低 | C19: =B7 -> 中 | D19: =B8 -> 高
A20: =B9 -> 权力距离低 | B20: =((C14-D14)*B14)+((C15-D15)*B15)+((C14-D14)*(C15-D15))*B16+B17 -> 4.9 | C20: =((C15-D15)*B15)+B17 -> 4.6 | D20: =(C14+D14)*B14+((C15-D15)*B15)+((C14+D14)*(C15-D15)*B16)+B17 -> 4.3
A21: =B10 -> 权力距离高 | B21: =((C14-D14)*B14)+(C15+D15)*B15+((C14-D14)*(C15+D15)*B16)+B17 -> 3.9 | C21: =(C15+D15)*B15+B17 -> 5.4 | D21: =(C14+D14)*B14+(C15+D15)*B15+((C14+D14)*(C15+D15))*B16+B17 -> 6.9

Sheet 23Figure
A1: =language!A101 -> 请只在有填充色的单元格中，输入必需的信息。如需帮助，请访问：www.obhrm.net/index.php/mod | D1: =language!A102 -> 返回菜单
A3: =language!A41 -> 图形标题 | B3: 图1 调节作用效果图
A4: =language!A42 -> 横轴标题 | B4: 自变量名称
A5: =language!A51 -> 纵轴标题 | B5: 因变量名称
A6: =language!A43 -> 自变量图例（低） | B6: 低
A7: =language!A45 -> 自变量图例（高） | B7: 高
A8: =language!A53 -> 调节变量图例（低） | B8: 权力距离低
A9: =language!A54 -> 调节变量图例（中） | B9: 权力距离中
A10: =language!A55 -> 调节变量图例（高） | B10: 权力距离高
B13: =language!A91 -> 非标准化回归系数（B） | C13: =language!A92 -> 平均值（M） | D13: =language!A93 -> 标准差（SD）
A14: =language!A71 -> 主效应 | B14: 0.6 | C14: 0 | D14: 1
A15: =language!A72 -> 调节变量效应 | B15: 0.4 | C15: 0 | D15: 1
A16: =language!A73 -> 调节效应 | B16: 0.9
A17: =language!A74 -> 常量 | B17: 5
B19: =B6 -> 低 | C19: =B7 -> 高
A20: =B8 -> 权力距离低 | B20: =((C14-D14)*B14)+((C15-D15)*B15)+((C14-D14)*(C15-D15))*B16+B17 -> 4.9 | C20: =(C14+D14)*B14+((C15-D15)*B15)+((C14+D14)*(C15-D15)*B16)+B17 -> 4.3
A21: =B9 -> 权力距离中 | B21: =((C14-D14)*B14)+B17 -> 4.4 | C21: =(C14+D14)*B14+B17 -> 5.6
A22: =B10 -> 权力距离高 | B22: =((C14-D14)*B14)+(C15+D15)*B15+((C14-D14)*(C15+D15)*B16)+B17 -> 3.9 | C22: =(C14+D14)*B14+(C15+D15)*B15+((C14+D14)*(C15+D15))*B16+B17 -> 6.9

Sheet 33Figure
A1: =language!A101 -> 请只在有填充色的单元格中，输入必需的信息。如需帮助，请访问：www.obhrm.net/index.php/mod | D1: =language!A102 -> 返回菜单
A3: =language!A41 -> 图形标题 | B3: 图1 调节作用效果图
A4: =language!A42 -> 横轴标题 | B4: 自变量名称
A5: =language!A51 -> 纵轴标题 | B5: 因变量名称
A6: =language!A43 -> 自变量图例（低） | B6: 低
A7: =language!A44 -> 自变量图例（中） | B7: 中
A8: =language!A45 -> 自变量图例（高） | B8: 高
A9: =language!A53 -> 调节变量图例（低） | B9: 权力距离低
A10: =language!A54 -> 调节变量图例（中） | B10: 权力距离中
A11: =language!A55 -> 调节变量图例（高） | B11: 权力距离高
B13: =language!A91 -> 非标准化回归系数（B） | C13: =language!A92 -> 平均值（M） | D13: =language!A93 -> 标准差（SD）
A14: =language!A71 -> 主效应 | B14: 0.6 | C14: 0 | D14: 1
A15: =language!A72 -> 调节变量效应 | B15: 0.4 | C15: 0 | D15: 1
A16: =language!A73 -> 调节效应 | B16: -1
A17: =language!A74 -> 常量 | B17: 3
B19: =B6 -> 低 | C19: =B7 -> 中 | D19: =B8 -> 高
A20: =B9 -> 权力距离低 | B20: =((C14-D14)*B14)+((C15-D15)*B15)+((C14-D14)*(C15-D15))*B16+B17 -> 1 | C20: =((C15-D15)*B15)+B17 -> 2.6 | D20: =(C14+D14)*B14+((C15-D15)*B15)+((C14+D14)*(C15-D15)*B16)+B17 -> 4.2
A21: =B10 -> 权力距离中 | B21: =((C14-D14)*B14)+B17 -> 2.4 | C21: =B17 -> 3 | D21: =(C14+D14)*B14+B17 -> 3.6
A22: =B11 -> 权力距离高 | B22: =((C14-D14)*B14)+(C15+D15)*B15+((C14-D14)*(C15+D15)*B16)+B17 -> 3.8 | C22: =(C15+D15)*B15+B17 -> 3.4 | D22: =(C14+D14)*B14+(C15+D15)*B15+((C14+D14)*(C15+D15))*B16+B17 -> 3

Sheet 24Figure
A1: =language!A101 -> 请只在有填充色的单元格中，输入必需的信息。如需帮助，请访问：www.obhrm.net/index.php/mod | D1: =language!A102 -> 返回菜单
A3: =language!A41 -> 图形标题 | B3: 图1 三因素调节效应效果图
A4: =language!A42 -> 横轴标题 | B4: 自变量名称
A5: =language!A51 -> 纵轴标题 | B5: 因变量名称
A6: =language!A43 -> 自变量图例（低） | B6: 低
A7: =language!A45 -> 自变量图例（高） | B7: 高
A8: =language!A56 -> 调节变量1图例（低） | B8: 权力距离低
A9: =language!A57 -> 调节变量1图例（高） | B9: 权力距离高
A10: =language!A58 -> 调节变量2图例（低） | B10: 集体主义低
A11: =language!A59 -> 调节变量2图例（高） | B11: 集体主义高
B13: =language!A91 -> 非标准化回归系数（B） | C13: =language!A92 -> 平均值（M） | D13: =language!A93 -> 标准差（SD）
A14: =language!A71 -> 主效应 | B14: 0.0043 | C14: 0 | D14: 1
A15: =language!A75 -> 调节变量1 | B15: 0.064 | C15: 0 | D15: 1
A16: =language!A76 -> 调节变量2 | B16: 0.042 | C16: 0 | D16: 1
A17: =language!A77 -> 自变量*调节1 | B17: 0.025
A18: =language!A78 -> 自变量*调节2 | B18: 0
A19: =language!A79 -> 调节1*调节2 | B19: 0.063
A20: =language!A80 -> 自变量*调节1*调节2 | B20: 0.093
A21: =language!A74 -> 常量 | B21: 3
B23: =B6 -> 低 | C23: =B7 -> 高
A24: =B8&"，"&B10 -> 权力距离低，集体主义低 | B24: =(C14-D14)*B14+(C15-D15)*B15+(C16-D16)*B16+(C14-D14)*(C15-D15)*B17+(C14-D14)*(C16-D16)*B18+(C15-D15)*(C16-D16)*B19+(C14-D14)*(C15-D15)*(C16-D16)*B20+B21 -> 2.8847 | C24: =(C14+D14)*B14+(C15-D15)*B15+(C16-D16)*B16+(C14+D14)*(C15-D15)*B17+(C14+D14)*(C16-D16)*B18+(C15-D15)*(C16-D16)*B19+(C14+D14)*(C15-D15)*(C16-D16)*B20+B21 -> 3.0293
A25: =B8&"，"&B11 -> 权力距离低，集体主义高 | B25: 3.0287 | C25: =(C14+D14)*B14+(C15-D15)*B15+(C16+D16)*B16+(C14+D14)*(C15-D15)*B17+(C14+D14)*(C16+D16)*B18+(C15-D15)*(C16+D16)*B19+(C14+D14)*(C15-D15)*(C16+D16)*B20+B21 -> 2.8013
A26: =B9&"，"&B10 -> 权力距离高，集体主义低 | B26: =(C14-D14)*B14+(C15+D15)*B15+(C16-D16)*B16+(C14-D14)*(C15+D15)*B17+(C14-D14)*(C16-D16)*B18+(C15+D15)*(C16-D16)*B19+(C14-D14)*(C15+D15)*(C16-D16)*B20+B21 -> 3.0227 | C26: =(C14+D14)*B14+(C15+D15)*B15+(C16-D16)*B16+(C14+D14)*(C15+D15)*B17+(C14+D14)*(C16-D16)*B18+(C15+D15)*(C16-D16)*B19+(C14+D14)*(C15+D15)*(C16-D16)*B20+B21 -> 2.8953
A27: =B9&"，"&B11 -> 权力距离高，集体主义高 | B27: =(C14-D14)*B14+(C15+D15)*B15+(C16+D16)*B16+(C14-D14)*(C15+D15)*B17+(C14-D14)*(C16+D16)*B18+(C15+D15)*(C16+D16)*B19+(C14-D14)*(C15+D15)*(C16+D16)*B20+B21 -> 3.0467 | C27: =(C14+D14)*B14+(C15+D15)*B15+(C16+D16)*B16+(C14+D14)*(C15+D15)*B17+(C14+D14)*(C16+D16)*B18+(C15+D15)*(C16+D16)*B19+(C14+D14)*(C15+D15)*(C16+D16)*B20+B21 -> 3.2913

Sheet language
A1: Now | B1: English | C1: Chinese
A2: 界面语言 | B2: Interface Language | C2: 界面语言
A3: 修改设置 | B3: Modify settings | C3: 修改设置
A4: 修改设置并输入数据 | B4: Modify settings & Data Entry | C4: 修改设置并输入数据
A5: 数据 | B5: Data | C5: 数据
A6: 原始数据或去中心化数据 | B6: unstandardised | C6: 原始数据或去中心化数据
A7: 标准化数据 | B7: standardised | C7: 标准化数据
A11: 图形类型 | B11: Figure Type | C11: 图形类型
A12: 2X2图形-双因素 | B12: 2X2 Figure-Two way | C12: 2X2图形-双因素
A13: 3X2图形-双因素 | B13: 3X2 Figure-Two way | C13: 3X2图形-双因素
A14: 2X3图形-双因素 | B14: 2X3 Figure-Two way | C14: 2X3图形-双因素
A15: 3X3图形-双因素 | B15: 3X3 Figure-Two way | C15: 3X3图形-双因素
A16: 2X4图形-三因素 | B16: 2X4 Figure-Three way | C16: 2X4图形-三因素
A17: 3X4图形-三因素 | B17: 3X4 Figure-Three way | C17: 3X4图形-三因素
A21: 调节变量类型 | B21: Moderator Type | C21: 调节变量类型
A22: 1连续变量 | B22: One Continutious | C22: 1连续变量
A23: 1分类变量（值分别为0、1） | B23: One Binary | C23: 1分类变量（值分别为0、1）
A24: 1连续变量，1分类变量 | B24: One Continutious & One Binary | C24: 1连续变量，1分类变量
A25: 1分类变量，1连续变量 | B25: One Binary & One Continutious | C25: 1分类变量，1连续变量
A26: 2连续变量 | B26: Two Continutious | C26: 2连续变量
A27: 2分类变量 | B27: Two Binary | C27: 2分类变量
A41: 图形标题 | B41: Title | C41: 图形标题
A42: 横轴标题 | B42: X Axis | C42: 横轴标题
A43: 自变量图例（低） | B43: IV Legend(Low) | C43: 自变量图例（低）
A44: 自变量图例（中） | B44: IV Legend(Mid) | C44: 自变量图例（中）
A45: 自变量图例（高） | B45: IV Legend(High) | C45: 自变量图例（高）
A51: 纵轴标题 | B51: Y Axis | C51: 纵轴标题
A52: 调节变量名称 | B52: Moderator Name | C52: 调节变量名称
A53: 调节变量图例（低） | B53: Mod Legend(Low) | C53: 调节变量图例（低）
A54: 调节变量图例（中） | B54: Mod Legend(Mid) | C54: 调节变量图例（中）
A55: 调节变量图例（高） | B55: Mod Legend(High) | C55: 调节变量图例（高）
A56: 调节变量1图例（低） | B56: Mod1 Legend(Low) | C56: 调节变量1图例（低）
A57: 调节变量1图例（高） | B57: Mod1 Legend(High) | C57: 调节变量1图例（高）
A58: 调节变量2图例（低） | B58: Mod2 Legend(Low) | C58: 调节变量2图例（低）
A59: 调节变量2图例（高） | B59: Mod2 Legend(High) | C59: 调节变量2图例（高）
A71: 主效应 | B71: Main Effect | C71: 主效应
A72: 调节变量效应 | B72: Moderating Variable | C72: 调节变量效应
A73: 调节效应 | B73: Interaction Term | C73: 调节效应
A74: 常量 | B74: Constant | C74: 常量
A75: 调节变量1 | B75: Mod Var1 | C75: 调节变量1
A76: 调节变量2 | B76: Mod Var2 | C76: 调节变量2
A77: 自变量*调节1 | B77: IV*ModVar1 | C77: 自变量*调节1
A78: 自变量*调节2 | B78: IV*ModVar2 | C78: 自变量*调节2
A79: 调节1*调节2 | B79: ModVar1*ModVar2 | C79: 调节1*调节2
A80: 自变量*调节1*调节2 | B80: IV*ModVar1*ModVar2 | C80: 自变量*调节1*调节2
A91: 非标准化回归系数（B） | B91: B (unstandardized coefficient) | C91: 非标准化回归系数（B）
A92: 平均值（M） | B92: Mean | C92: 平均值（M）
A93: 标准差（SD） | B93: SD | C93: 标准差（SD）
A101: 请只在有填充色的单元格中，输入必需的信息。如需帮助，请访问：www.obhrm.net/index.php/mod | B101: Please only input in the shaded cells | C101: 请只在有填充色的单元格中，输入必需的信息。如需帮助，请访问：www.obhrm.net/index.php/mod
A102: 返回菜单 | B102: Return to Menu | C102: 返回菜单
A111: 输入错误 | B111: Input Error | C111: 输入错误
A112: 2X3图形调节变量只能是1连续变量，请重新设置 | B112: 2X3 Figure's moderator can only be continous variable | C112: 2X3图形调节变量只能是1连续变量，请重新设置
A113: 3X3图形调节变量只能是1连续变量，请重新设置 | B113: 3X3 Figure's moderator can only be continous variable | C113: 3X3图形调节变量只能是1连续变量，请重新设置
A114: 只能有1个调节变量 | B114: No more than one moderator | C114: 只能有1个调节变量
A115: 必须有两个调节变量 | B115: Should have two moderator | C115: 必须有两个调节变量
